fUSD/lending_fUSD_20251110
["ID","MTS","AMOUNT","RATE_DAILY","PERIOD"]
[393562465,1762801838299,-500.0,0.00017999,2]
[393562467,1762801838310,-46371.9866054,0.00017999,2]
[393562468,1762801838320,-500.0,0.00017999,2]
[393562470,1762801838330,-413.78133242,0.00017999,2]
[393562472,1762801838340,-500.0,0.00017999,2]
[393562474,1762801838350,-500.0,0.00017999,2]
[393562476,1762801838360,-500.0,0.00017999,2]
[393562478,1762801838369,-588.74165764,0.00017999,2]
[393562480,1762801838380,-211.1071707,0.00017999,2]
[393562481,1762801838390,-500.0,0.00017999,2]
[393562483,1762801838400,-500.0,0.00017999,2]
[393562485,1762801838410,-500.0,0.00017999,2]
[393562487,1762801838420,-500.0,0.00017999,2]
[393562489,1762801838430,-307.45218061,0.00017999,2]
[393562491,1762801838441,-500.0,0.00017999,2]
[393562493,1762801838451,-500.0,0.00017999,2]
[393562495,1762801838465,-500.0,0.00017999,2]
[393562496,1762801838476,-538.08323017,0.00017999,2]
[393562498,1762801838487,-401526.8738729,0.00017999,2]
[393562500,1762801838499,-7629.4629619,0.00017999,2]
[393562502,1762801838510,-500.0,0.00017999,2]
[393562504,1762801838521,-500.0,0.00017999,2]
[393562506,1762801838532,-500.0,0.00017999,2]
[393562508,1762801838542,-500.0,0.00017999,2]
[393562510,1762801838552,-500.0,0.00017999,2]
[393562512,1762801838564,-500.0,0.00017999,2]
[393562514,1762801838575,-500.0,0.00017999,2]
[393562516,1762801838585,-500.0,0.00017999,2]
[393562518,1762801838595,-500.0,0.00017999,2]
[393562519,1762801838605,-500.0,0.00017999,2]
[393562521,1762801838616,-500.0,0.00017999,2]
[393562523,1762801838627,-500.0,0.00017999,2]
[393562525,1762801838637,-500.0,0.00017999,2]
[393562527,1762801838648,-500.0,0.00017999,2]
[393562529,1762801838659,-500.0,0.00017999,2]
[393562531,1762801838669,-500.0,0.00017999,2]
[393562533,1762801838679,-500.0,0.00017999,2]
[393562534,1762801838689,-538.97549019,0.00017999,2]
[393562537,1762801838709,-500.0,0.00017999,2]
[393562539,1762801838721,-500.0,0.00017999,2]
[393562541,1762801838732,-500.0,0.00017999,2]
[393562543,1762801838743,-503.47993958,0.00017999,2]
[393562545,1762801838754,-500.0,0.00017999,2]
[393562547,1762801838765,-500.0,0.00017999,2]
[393562549,1762801838775,-500.0,0.00017999,2]
[393562551,1762801838785,-500.0,0.00017999,2]
[393562553,1762801838795,-500.0,0.00017999,2]
[393562555,1762801838806,-500.0,0.00017999,2]
[393562557,1762801838816,-500.0,0.00017999,2]
[393562558,1762801838826,-500.0,0.00017999,2]
[393562560,1762801838836,-500.0,0.00017999,2]
[393562562,1762801838846,-500.0,0.00017999,2]
[393562564,1762801838857,-500.0,0.00017999,2]
[393562566,1762801838869,-308.3373714,0.00017999,2]
[393562568,1762801838879,-534.26307802,0.00017999,2]
[393562570,1762801838889,-500.0,0.00017999,2]
[393562572,1762801838899,-205.87972136,0.00017999,2]
[393562574,1762801838909,-1000.684,0.00017999,2]
[393562576,1762801838919,-199.83064822,0.00017999,2]
[393562578,1762801838929,-1000.0,0.00017999,2]
[393562579,1762801838939,-3200902.07599908,0.00018,2]
[393562605,1762801839392,-327293.9183664,0.00018,2]
[393562635,1762801839659,-1000.0,0.000177,2]
[393562637,1762801839670,-304.62343404,0.00017856,2]
[393562639,1762801839680,-555449.48840322,0.00018,2]
[393562641,1762801839689,-150.0,0.00018036,2]
[393562643,1762801839699,-482.41813526,0.00018036,2]
[393562645,1762801839711,-500.0,0.00018036,2]
[393562647,1762801839720,-500.0,0.00018036,2]
[393562649,1762801839730,-500.0,0.00018036,2]
[393562651,1762801839740,-150.0,0.00018036,2]
[393562653,1762801839750,-500.0,0.00018036,2]
[393562655,1762801839759,-150.0,0.00018036,2]
[393562657,1762801839769,-200.0,0.00018036,2]
[393562659,1762801839779,-150.0,0.00018036,2]
[393562662,1762801839794,-150.0,0.00018036,2]
[393562664,1762801839804,-168.0,0.0001804,2]
[393562666,1762801839813,-150.0,0.00018073,2]
[393562668,1762801839823,-150.0,0.00018073,2]
[393562670,1762801839832,-587.6283326,0.00018073,2]
[393562672,1762801839841,-150.0,0.00018073,2]
[393562674,1762801839851,-150.0,0.00018073,2]
[393562675,1762801839860,-500.0,0.00018073,2]
[393562678,1762801839870,-280.08,0.00018082,2]
[393562680,1762801839880,-1000.0,0.00018083,2]
[393562682,1762801839890,-1852.42,0.00018083,2]
[393562684,1762801839899,-429.57,0.00018083,2]
[393562685,1762801839908,-168.0,0.00018099,2]
[393562687,1762801839918,-500.0,0.00018115,2]
[393562689,1762801839927,-8476.71348045,0.00018163,2]
[393562692,1762801839937,-329.0,0.00018165,2]
[393562694,1762801839948,-150.0,0.00018173,2]
[393562696,1762801839964,-500.0,0.00018173,2]
[393562724,1762801840209,-500.0,0.00018173,2]
[393562726,1762801840220,-500.0,0.00018173,2]
[393562728,1762801840229,-162.05082562,0.00018173,2]
[393562730,1762801840239,-500.0,0.00018173,2]
[393562732,1762801840250,-205.6242052,0.00018173,2]
[393562734,1762801840259,-150.0,0.00018173,2]
[393562736,1762801840273,-150.0,0.00018173,2]
[393562738,1762801840283,-154.5547493,0.0001821,2]
[393562740,1762801840293,-200.08208835,0.0001821,2]
[393562742,1762801840303,-150.0,0.0001821,2]
[393562744,1762801840313,-150.0,0.0001821,2]
[393562746,1762801840322,-500.0,0.0001821,2]
[393562748,1762801840332,-631.0,0.00018223,2]
[393562750,1762801840342,-329.0,0.00018263,2]
[393562752,1762801840352,-166.66,0.00018264,2]
[393562754,1762801840361,-150.0,0.00018264,2]
[393562756,1762801840371,-150.0,0.00018264,2]
[393562758,1762801840381,-150.0,0.00018264,2]
[393562760,1762801840392,-150.0,0.00018264,2]
[393562762,1762801840402,-150.0,0.00018264,2]
[393562764,1762801840413,-500.0,0.00018264,2]
[393562766,1762801840423,-150.0,0.00018264,2]
[393562768,1762801840433,-150.0,0.00018264,2]
[393562770,1762801840442,-766.71,0.00018269,2]
[393562773,1762801840453,-500.0,0.0001831,2]
[393562775,1762801840463,-500.0,0.0001831,2]
[393562776,1762801840473,-500.0,0.0001831,2]
[393562779,1762801840483,-494.56248889,0.0001831,2]
[393562781,1762801840492,-150.0,0.0001831,2]
[393562783,1762801840502,-500.0,0.00018321,2]
[393562785,1762801840512,-159.0,0.00018347,2]
[393562787,1762801840521,-150.0,0.00018347,2]
[393562789,1762801840531,-478.0,0.00018347,2]
[393562791,1762801840541,-168.0,0.0001836,2]
[393562793,1762801840551,-168.0,0.00018362,2]
[393562795,1762801840560,-631.0,0.00018398,2]
[393562797,1762801840570,-294.56198183,0.00018401,2]
[393562799,1762801840579,-150.0,0.00018401,2]
[393562801,1762801840590,-150.0,0.00018401,2]
[393562803,1762801840599,-150.0,0.00018401,2]
[393562805,1762801840610,-264.07981499,0.00018401,2]
[393562807,1762801840620,-553.45223361,0.00018401,2]
[393562810,1762801840630,-241.94050601,0.00018401,2]
[393562812,1762801840639,-156.78,0.00018423,2]
[393562814,1762801840652,-500.0,0.00018447,2]
[393562816,1762801840661,-500.0,0.00018447,2]
[393562818,1762801840675,-500.0,0.00018447,2]
[393562820,1762801840684,-2298.24,0.00018456,2]
[393562822,1762801840693,-997.0,0.00018478,2]
[393562824,1762801840702,-224.68099392,0.00018484,2]
[393562826,1762801840712,-420.0,0.00018488,2]
[393562828,1762801840723,-300.0,0.00018489,2]
[393562830,1762801840732,-631.0,0.00018516,2]
[393562832,1762801840741,-168.0,0.00018517,2]
[393562834,1762801840751,-1000.0,0.00018521,2]
[393562836,1762801840760,-514.51741513,0.00018521,2]
[393562838,1762801840769,-631.0,0.0001853,2]
[393562840,1762801840779,-150.0,0.00018538,2]
[393562842,1762801840789,-168.24179502,0.00018538,2]
[393562844,1762801840800,-766.71,0.00018543,2]
[393562846,1762801840810,-1680.0,0.00018579,2]
[393562848,1762801840819,-347.50724804,0.00018584,2]
[393562850,1762801840829,-500.0,0.00018584,2]
[393562852,1762801840838,-500.0,0.00018584,2]
[393562854,1762801840848,-329.0,0.00018591,2]
[393562856,1762801840858,-166.66,0.00018625,2]
[393562858,1762801840868,-175.17,0.00018681,2]
[393562860,1762801840879,-631.0,0.00018682,2]
[393562862,1762801840888,-329.0,0.00018689,2]
[393562864,1762801840898,-500.0,0.00018721,2]
[393562866,1762801840913,-500.0,0.00018721,2]
[393562868,1762801840923,-280.08,0.0001876,2]
[393562870,1762801840933,-631.0,0.00018786,2]
[393562872,1762801840943,-766.71,0.00018817,2]
[393562874,1762801840956,-1687.59481,0.0001882,2]
[393562876,1762801840966,-500.0,0.00018858,2]
[393562878,1762801840975,-500.0,0.00018858,2]
[393562880,1762801840984,-284.314863,0.00018899,2]
[393562882,1762801840995,-168.0,0.00018907,2]
[393562884,1762801841007,-2298.24,0.00018958,2]
[393562885,1762801841016,-168.0,0.00018963,2]
[393562887,1762801841026,-184.3,0.00018987,2]
[393562889,1762801841038,-166.66,0.00018987,2]
[393562891,1762801841049,-500.0,0.00018995,2]
[393562893,1762801841058,-500.0,0.00018995,2]
[393562896,1762801841072,-504.63423517,0.00019,2]
[393562898,1762801841082,-211.36858613,0.00019,2]
[393562900,1762801841092,-28549.2935431,0.00019,2]
[393562902,1762801841101,-631.0,0.00019013,2]
[393562903,1762801841111,-329.0,0.00019045,2]
[393562906,1762801841121,-329.0,0.00019064,2]
[393562908,1762801841131,-766.71,0.00019091,2]
[393562910,1762801841140,-1974.96,0.0001912,2]
[393562912,1762801841150,-500.0,0.00019132,2]
[393562913,1762801841160,-211.46535217,0.00019132,2]
[393562916,1762801841170,-997.0,0.00019158,2]
[393562917,1762801841179,-168.0,0.00019171,2]
[393562920,1762801841190,-497.26749005,0.00019269,2]
[393562921,1762801841200,-15151.35,0.00019286,2]
[393562923,1762801841211,-766.71,0.00019365,2]
[393562925,1762801841221,-280.08,0.00019438,2]
[393562927,1762801841232,-250.0,0.0001946,2]
[393562929,1762801841241,-200.0,0.0001946,2]
[393562931,1762801841252,-10315.86,0.0001946,2]
[393562933,1762801841262,-4737.51,0.0001946,2]
[393562935,1762801841272,-999.0,0.0001946,3]
[393562938,1762801841283,-5430.96,0.0001946,2]
[393562940,1762801841294,-244.66,0.0001946,2]
[393562942,1762801841303,-150.0,0.0001946,2]
[393562944,1762801841313,-173.98,0.0001946,2]
[393562945,1762801841323,-2298.24,0.0001946,2]
[393562947,1762801841333,-2685.43,0.00019615,2]
[393562950,1762801841344,-5994.96,0.00019615,2]
[393562952,1762801841353,-766.7221293,0.00019639,2]
[393562954,1762801841364,-156.78,0.00019793,2]
[393562956,1762801841374,-1687.59481,0.0001982,2]
[393562958,1762801841384,-10372.7342478,0.00019898,2]
[393562959,1762801841394,-211.1071707,0.00019898,2]
[393562961,1762801841404,-1000.0,0.0002,7]
[393562963,1762801841414,-399.1111977,0.0002,2]
[393562965,1762801841424,-166.66,0.00020043,2]
[393562968,1762801841442,-280.08,0.00020116,2]
[393562970,1762801841452,-6211.1543,0.00020124,2]
[393562972,1762801841463,-3784.6808,0.00020124,2]
[393562974,1762801841475,-464.40603662,0.00020128,2]
[393562976,1762801841484,-850.48,0.00020187,2]
[393562978,1762801841494,-587.0,0.00020195,2]
[393562980,1762801841504,-500.0,0.00020223,2]
[393562982,1762801841514,-500.0,0.00020223,2]
[393562984,1762801841524,-375.46061368,0.00020223,2]
[393562986,1762801841533,-530.67245019,0.00020223,2]
[393562988,1762801841542,-503.69,0.00020223,2]
[393562990,1762801841551,-500.0,0.00020223,2]
[393562992,1762801841561,-500.0,0.00020223,2]
[393562994,1762801841575,-500.0,0.00020223,2]
[393562996,1762801841584,-500.0,0.00020223,2]
[393562998,1762801841594,-500.0,0.00020223,2]
[393563000,1762801841603,-500.0,0.00020223,2]
[393563003,1762801841613,-500.0,0.00020223,2]
[393563005,1762801841623,-500.0,0.00020223,2]
[393563007,1762801841633,-500.0,0.00020223,2]
[393563008,1762801841641,-500.0,0.00020223,2]
[393563011,1762801841652,-500.0,0.00020223,2]
[393563013,1762801841661,-500.0,0.00020223,2]
[393563015,1762801841670,-500.0,0.00020223,2]
[393563017,1762801841679,-500.0,0.00020223,2]
[393563019,1762801841688,-500.0,0.00020223,2]
[393563021,1762801841697,-174.29171252,0.00020223,2]
[393563023,1762801841707,-500.0,0.00020223,2]
[393563025,1762801841717,-500.0,0.00020223,2]
[393563027,1762801841727,-500.0,0.00020223,2]
[393563029,1762801841737,-500.0,0.00020223,2]
[393563031,1762801841747,-500.0,0.00020223,2]
[393563033,1762801841756,-500.0,0.00020223,2]
[393563035,1762801841766,-500.0,0.00020223,2]
[393563037,1762801841775,-175.17,0.00020238,2]
[393563039,1762801841784,-1000.0,0.00020343,2]
[393563041,1762801841795,-2351.0,0.00020395,2]
[393563043,1762801841807,-504.45357302,0.000204,2]
[393563045,1762801841816,-500.0,0.000204,2]
[393563047,1762801841826,-207.4,0.00020528,2]
[393563049,1762801841836,-2500.0,0.00020656,2]
[393563051,1762801841845,-2500.0,0.00020656,2]
[393563053,1762801841855,-2000.0,0.000207,2]
[393563055,1762801841866,-166.66,0.00020705,2]
[393563057,1762801841876,-280.08,0.00020795,2]
[393563059,1762801841886,-1687.59481,0.0002082,2]
[393563061,1762801841897,-250.0,0.00020849,2]
[393563064,1762801841909,-250.0,0.00020849,2]
[393563065,1762801841919,-250.0,0.00020849,2]
[393563067,1762801841930,-250.0,0.00020849,2]
[393563069,1762801841940,-250.0,0.00020849,2]
[393563072,1762801841951,-151.0,0.00020849,2]
[393563073,1762801841966,-250.0,0.00020849,2]
[393563075,1762801841976,-151.0,0.00020849,2]
[393563077,1762801841987,-151.0,0.00020849,2]
[393563079,1762801841997,-151.0,0.00020849,2]
[393563081,1762801842007,-151.0,0.00020849,2]
[393563083,1762801842017,-245.09355093,0.00020849,2]
[393563085,1762801842027,-250.0,0.00020849,2]
[393563087,1762801842038,-250.0,0.00020849,2]
[393563089,1762801842048,-250.0,0.00020849,2]
[393563091,1762801842057,-250.0,0.00020849,2]
[393563093,1762801842066,-250.0,0.00020849,2]
[393563095,1762801842075,-250.0,0.00020849,2]
[393563097,1762801842085,-250.0,0.00020849,2]
[393563099,1762801842094,-250.0,0.00020849,2]
[393563101,1762801842103,-250.0,0.00020849,2]
[393563103,1762801842112,-250.0,0.00020849,2]
[393563105,1762801842121,-250.0,0.00020849,2]
[393563107,1762801842130,-250.0,0.00020849,2]
[393563109,1762801842139,-250.0,0.00020849,2]
[393563111,1762801842148,-250.0,0.00020849,2]
[393563113,1762801842158,-250.0,0.00020849,2]
[393563115,1762801842168,-250.0,0.00020849,2]
[393563117,1762801842178,-151.0,0.00020849,2]
[393563119,1762801842188,-250.0,0.00020849,2]
[393563120,1762801842198,-151.0,0.00020849,2]
[393563122,1762801842209,-250.0,0.00020849,2]
[393563124,1762801842219,-151.0,0.00020849,2]
[393563126,1762801842230,-250.0,0.00020849,2]
[393563128,1762801842240,-151.0,0.00020849,2]
[393563129,1762801842251,-250.0,0.00020849,2]
[393563130,1762801842272,-151.0,0.00020849,2]
[393563131,1762801842283,-250.0,0.00020849,2]
[393563132,1762801842292,-151.0,0.00020849,2]
[393563133,1762801842303,-250.0,0.00020849,2]
[393563134,1762801842312,-151.0,0.00020849,2]
[393563135,1762801842322,-250.0,0.00020849,2]
[393563136,1762801842332,-151.0,0.00020849,2]
[393563138,1762801842342,-250.0,0.00020849,2]
[393563140,1762801842351,-151.0,0.00020849,2]
[393563143,1762801842361,-250.0,0.00020849,2]
[393563144,1762801842371,-151.0,0.00020849,2]
[393563146,1762801842381,-250.0,0.00020849,2]
[393563148,1762801842390,-151.0,0.00020849,2]
[393563150,1762801842399,-250.0,0.00020849,2]
[393563152,1762801842409,-250.0,0.00020849,2]
[393563154,1762801842419,-250.0,0.00020849,2]
[393563156,1762801842428,-250.0,0.00020849,2]
[393563158,1762801842437,-250.0,0.00020849,2]
[393563160,1762801842447,-250.0,0.00020849,2]
[393563163,1762801842458,-250.0,0.00020849,2]
[393563164,1762801842468,-277.35679052,0.00020849,2]
[393563167,1762801842478,-250.0,0.00020849,2]
[393563169,1762801842488,-250.0,0.00020849,2]
[393563171,1762801842499,-250.0,0.00020849,2]
[393563173,1762801842509,-250.0,0.00020849,2]
[393563175,1762801842519,-250.0,0.00020849,2]
[393563177,1762801842529,-322.6107,0.00020849,2]
[393563179,1762801842539,-500.0,0.00020948,2]
[393563181,1762801842548,-155.04743738,0.00020973,2]
[393563183,1762801842558,-500.0,0.00020973,2]
[393563185,1762801842567,-500.0,0.00020973,2]
[393563187,1762801842577,-500.0,0.00020973,2]
[393563189,1762801842586,-500.0,0.00020973,2]
[393563191,1762801842595,-500.0,0.00020973,2]
[393563193,1762801842604,-478.4124735,0.00020973,2]
[393563194,1762801842617,-151.0,0.00020994,2]
[393563196,1762801842626,-300.0,0.00020996,2]
[393563198,1762801842636,-300.0,0.00020996,2]
[393563201,1762801842647,-300.0,0.00020996,2]
[393563203,1762801842656,-10346.9887976,0.00020997,2]
[393563205,1762801842666,-89592.7556711,0.00020997,2]
[393563207,1762801842675,-1702.3632925,0.00020997,2]
[393563209,1762801842685,-184.3,0.00021097,2]
[393563211,1762801842695,-166.66,0.00021367,2]
[393563213,1762801842704,-173.98,0.00021406,2]
[393563215,1762801842714,-645.61261135,0.00021539,2]
[393563217,1762801842724,-2308.7252674,0.00021666,2]
[393563219,1762801842734,-19990.845921,0.00021666,2]
[393563221,1762801842743,-379.848594,0.00021666,2]
[393563223,1762801842753,-653.58,0.00021774,2]
[393563225,1762801842762,-175.17,0.00021795,2]
[393563227,1762801842771,-10372.7342478,0.00021797,2]
[393563229,1762801842781,-211.1071707,0.00021797,2]
[393563231,1762801842791,-1687.59481,0.0002182,2]
[393563233,1762801842800,-5000.0,0.00021918,2]
[393563235,1762801842810,-300.0,0.00021999,2]
[393563237,1762801842819,-4144.70830073,0.00022,2]
[393563239,1762801842829,-47541.70470514,0.00022,4]
[393563241,1762801842839,-166.66,0.00022028,2]
[393563243,1762801842848,-393.0,0.00022059,2]
[393563245,1762801842857,-155.18887027,0.00022065,2]
[393563247,1762801842867,-151.0,0.00022218,2]
[393563249,1762801842877,-287.61899177,0.00022218,2]
[393563251,1762801842886,-334.5472959,0.00022218,2]
[393563253,1762801842895,-200.0,0.00022281,2]
[393563255,1762801842905,-22708.74,0.000223,7]
[393563257,1762801842914,-478.32096809,0.000223,7]
[393563259,1762801842925,-3292.0,0.00022388,2]
[393563261,1762801842934,-500.0,0.00022422,2]
[393563263,1762801842943,-500.0,0.00022422,2]
[393563265,1762801842954,-500.0,0.00022422,2]
[393563267,1762801842965,-500.0,0.00022422,2]
[393563269,1762801842974,-500.0,0.00022422,2]
[393563271,1762801842985,-500.0,0.00022436,2]
[393563273,1762801842995,-500.0,0.00022436,2]
[393563275,1762801843004,-500.0,0.00022436,2]
[393563277,1762801843013,-156.44,0.00022518,2]
[393563279,1762801843024,-1000.0,0.00022604,2]
[393563281,1762801843034,-166.66,0.0002269,2]
[393563283,1762801843043,-478.32096809,0.00022798,2]
[393563285,1762801843053,-1687.59481,0.0002282,2]
[393563287,1762801843063,-184.3,0.00023206,2]
[393563289,1762801843074,-215.0738,0.00023267,2]
[393563291,1762801843084,-166.66,0.00023352,2]
[393563293,1762801843094,-175.17,0.00023352,2]
[393563295,1762801843104,-173.98,0.00023352,2]
[393563297,1762801843114,-151.0,0.00023587,2]
[393563299,1762801843123,-298.26089446,0.00023587,2]
[393563301,1762801843132,-346.92554585,0.00023587,2]
[393563303,1762801843142,-10372.7342478,0.00023696,2]
[393563305,1762801843152,-211.1071707,0.00023696,2]
[393563307,1762801843161,-348.0,0.00024,5]
[393563309,1762801843171,-1010.96702751,0.00024,2]
[393563311,1762801843181,-2000.0,0.000244,2]
[393563313,1762801843191,-4609.0,0.00024576,2]
[393563315,1762801843200,-153.0,0.00024658,2]
[393563317,1762801843210,-153.0,0.00024658,2]
[393563319,1762801843220,-153.0,0.00024658,2]
[393563321,1762801843229,-153.0,0.00024658,2]
[393563323,1762801843239,-153.0,0.00024658,2]
[393563325,1762801843250,-153.0,0.00024658,2]
[393563327,1762801843259,-153.0,0.00024658,2]
[393563329,1762801843269,-153.0,0.00024658,2]
[393563331,1762801843278,-153.0,0.00024658,2]
[393563333,1762801843287,-153.0,0.00024658,2]
[393563335,1762801843297,-153.0,0.00024658,2]
[393563337,1762801843306,-153.0,0.00024658,2]
[393563339,1762801843318,-153.0,0.00024658,2]
[393563341,1762801843328,-153.0,0.00024658,2]
[393563343,1762801843338,-153.0,0.00024658,2]
[393563345,1762801843347,-153.0,0.00024658,2]
[393563347,1762801843356,-153.0,0.00024658,2]
[393563349,1762801843366,-153.0,0.00024658,2]
[393563351,1762801843375,-153.0,0.00024658,2]
[393563353,1762801843385,-153.0,0.00024658,2]
[393563355,1762801843395,-153.0,0.00024658,2]
[393563357,1762801843404,-153.0,0.00024658,2]
[393563359,1762801843413,-153.0,0.00024658,2]
[393563361,1762801843422,-153.0,0.00024658,2]
[393563363,1762801843432,-153.0,0.00024658,2]
[393563365,1762801843442,-153.0,0.00024658,2]
[393563367,1762801843451,-153.0,0.00024658,2]
[393563369,1762801843462,-153.0,0.00024658,2]
[393563371,1762801843472,-153.0,0.00024658,2]
[393563373,1762801843482,-153.0,0.00024658,2]
[393563375,1762801843491,-153.0,0.00024658,2]
[393563377,1762801843500,-153.0,0.00024658,2]
[393563400,1762801843722,-153.0,0.00024658,2]
[393563402,1762801843734,-153.0,0.00024658,2]
[393563405,1762801843745,-153.0,0.00024658,2]
[393563407,1762801843754,-153.0,0.00024658,2]
[393563409,1762801843764,-153.0,0.00024658,2]
[393563411,1762801843773,-153.0,0.00024658,2]
[393563413,1762801843783,-153.0,0.00024658,2]
[393563415,1762801843792,-153.0,0.00024658,2]
[393563417,1762801843802,-196.37,0.00024658,2]
[393563419,1762801843812,-1000.0,0.00024658,2]
[393563421,1762801843821,-500.0,0.00024799,2]
[393563423,1762801843831,-500.0,0.00024799,2]
[393563424,1762801843840,-500.0,0.00024799,2]
[393563427,1762801843850,-500.0,0.00024799,2]
[393563429,1762801843860,-500.0,0.00024799,2]
[393563431,1762801843870,-503.69,0.00024799,2]
[393563432,1762801843879,-527.0,0.00024799,2]
[393563434,1762801843888,-500.0,0.00024799,2]
[393563436,1762801843897,-500.0,0.00024799,2]
[393563438,1762801843906,-500.0,0.00024799,2]
[393563440,1762801843915,-500.0,0.00024799,2]
[393563443,1762801843929,-500.0,0.00024799,2]
[393563445,1762801843939,-500.0,0.00024799,2]
[393563447,1762801843949,-500.0,0.00024799,2]
[393563449,1762801843964,-500.0,0.00024799,2]
[393563451,1762801843974,-500.0,0.00024799,2]
[393563453,1762801843983,-500.0,0.00024799,2]
[393563455,1762801843993,-500.0,0.00024799,2]
[393563457,1762801844002,-500.0,0.00024799,2]
[393563459,1762801844011,-500.0,0.00024799,2]
[393563461,1762801844021,-500.0,0.00024799,2]
[393563463,1762801844031,-500.0,0.00024799,2]
[393563465,1762801844041,-500.0,0.00024799,2]
[393563467,1762801844050,-500.0,0.00024799,2]
[393563469,1762801844060,-500.0,0.00024799,2]
[393563471,1762801844071,-500.0,0.00024799,2]
[393563472,1762801844080,-329441.242078,0.000248,3]
[393563474,1762801844090,-1000.0,0.00024864,2]
[393563477,1762801844100,-180.83529612,0.0002489,2]
[393563479,1762801844110,-151.0,0.00024897,7]
[393563481,1762801844120,-500.0,0.00024899,2]
[393563483,1762801844133,-500.0,0.00024899,2]
[393563485,1762801844142,-500.0,0.00024899,2]
[393563487,1762801844151,-478.32096809,0.000249,3]
[393563489,1762801844161,-586402.313351,0.000249,3]
[393563491,1762801844170,-151.0,0.00024956,2]
[393563493,1762801844180,-309.29654756,0.00024956,2]
[393563495,1762801844189,-359.76179104,0.00024956,2]
[393563497,1762801844199,-645.61261135,0.00025142,2]
[393563499,1762801844208,-173.98,0.00025298,2]
[393563501,1762801844219,-560.0,0.00025965,2]
[393563503,1762801844229,-6662.0,0.00025965,2]
[393563505,1762801844240,-2142.0,0.00025965,2]
[393563507,1762801844250,-6479.0,0.00025965,2]
[393563509,1762801844259,-21141.15101208,0.00026,2]
[393563511,1762801844269,-4138.65,0.00026,2]
[393563513,1762801844279,-213.90047448,0.00026,2]
[393563515,1762801844288,-1579.0776707,0.00026,10]
[393563518,1762801844297,-161.00637366,0.00026,2]
[393563520,1762801844307,-223.0315306,0.00026006,2]
[393563522,1762801844317,-156.44,0.00026128,2]
[393563524,1762801844331,-169.14659638,0.00026325,2]
[393563526,1762801844342,-320.74051982,0.00026325,2]
[393563528,1762801844352,-373.07297731,0.00026325,2]
[393563530,1762801844361,-27159.36400554,0.000264,2]
[393563532,1762801844372,-155.18887027,0.00026429,2]
[393563534,1762801844382,-1000.0,0.00026667,7]
[393563536,1762801844392,-850.48,0.00026676,2]
[393563538,1762801844402,-1974.96,0.00026768,2]
[393563540,1762801844412,-1347.0,0.00026978,2]
[393563542,1762801844422,-200.0,0.00026986,2]
[393563544,1762801844431,-250.0,0.00027,2]
[393563546,1762801844441,-1021.37406784,0.00027,2]
[393563548,1762801844451,-530.0,0.00027,2]
[393563551,1762801844461,-164.0,0.00027,7]
[393563553,1762801844471,-1000.0,0.00027124,2]
[393563555,1762801844481,-18603.0,0.00027194,2]